bitfinex-derivatives/quotes_ETHF0:USTF0_20240830
["timestamp","ask_amount","ask_price","bid_price","bid_amount"]
[1725014141680,4.87632341,2516.1,2516.0,1.6604701]
[1725014141973,4.87632341,2516.1,2516.0,1.41575142]
[1725014142477,4.87632341,2516.1,2516.0,1.66047153]
[1725014142778,4.87632341,2516.1,2516.0,1.66046987]
[1725014143272,4.87632341,2516.1,2516.0,2.05786344]
[1725014143874,4.47894341,2516.1,2516.0,2.05786344]
[1725014144689,4.47894341,2516.1,2516.0,1.03949037]
[1725014144973,4.47894341,2516.1,2516.0,2.05782651]
[1725014145479,4.47894341,2516.1,2516.0,1.45035106]
[1725014145777,4.47894341,2516.1,2516.0,2.05782372]
[1725014147083,4.47894341,2516.1,2516.0,4.96818683]
[1725014147568,4.47894341,2516.1,2516.0,8.94258683]
[1725014147769,0.00596291,2516.2,2516.1,0.39738]
[1725014147969,0.00596291,2516.2,2516.1,4.71927038]
[1725014148272,0.00596291,2516.2,2516.1,8.20151641]
[1725014148476,0.00596291,2516.2,2516.1,9.68696564]
[1725014149283,0.00596291,2516.2,2516.1,8.69351564]
[1725014150677,0.00596291,2516.2,2516.1,9.48460208]
[1725014151469,9.05309572,2516.2,2516.1,2.53831638]
[1725014151672,8.65573572,2516.2,2516.0,1.03941926]
[1725014151867,2.12033,2516.1,2516.0,1.03941926]
[1725014152078,2.12033,2516.1,2516.0,3.57786653]
[1725014152277,6.6346004,2516.1,2516.0,4.36901358]
[1725014152715,6.6346004,2516.1,2516.0,3.57786653]
[1725014153173,5.6411504,2516.1,2516.0,3.57786653]
[1725014153376,6.6346004,2516.1,2516.0,3.57786653]
[1725014154270,6.6346004,2516.1,2516.0,4.36902848]
[1725014155081,6.6346004,2516.1,2516.0,1.45026899]
[1725014155280,6.6346004,2516.1,2516.0,5.80233574]
[1725014155473,6.6346004,2516.1,2516.0,7.28787317]
[1725014156285,6.6346004,2516.1,2516.0,7.28788956]
[1725014156882,6.6346004,2516.1,2516.0,6.49670971]
[1725014157785,6.6346004,2516.1,2516.0,5.45729045]
[1725014158374,6.6346004,2516.1,2516.0,6.49670971]
[1725014158591,6.6346004,2516.1,2516.0,3.97180309]
[1725014158774,6.6346004,2516.1,2516.0,5.45739064]
[1725014159381,6.6346004,2516.1,2516.0,7.28801498]
[1725014159578,6.6346004,2516.1,2516.0,6.4968099]
[1725014159778,6.6346004,2516.1,2516.0,7.28800586]
[1725014159986,8.0646004,2516.1,2516.0,6.4968099]
[1725014160181,8.0646004,2516.1,2516.0,7.28801015]
[1725014160991,8.0646004,2516.1,2516.0,6.40992755]
[1725014161186,8.0646004,2516.1,2516.0,7.28800743]
[1725014161486,8.0646004,2516.1,2516.0,8.31516101]
[1725014162188,8.0646004,2516.1,2516.0,5.39636325]
[1725014164290,8.0646004,2516.1,2516.0,5.3963789]
[1725014164990,8.0646004,2516.1,2516.0,7.38403812]
[1725014165286,8.0646004,2516.1,2516.0,2.12771922]
[1725014165287,13.0324504,2516.1,2516.0,2.12771922]
[1725014165486,3.9744,2516.0,2515.4,1.56342022]
[1725014165699,3.9744,2516.0,2515.0,0.62114475]
[1725014165700,4.6378,2515.5,2515.0,0.62114475]
[1725014165984,2.38512,2515.2,2515.1,9.83e-06]
[1725014166185,0.99388,2515.0,2514.7,4.77151975]
[1725014166392,1.82758,2514.8,2514.7,3.2078]
[1725014166579,1.82758,2514.8,2514.7,7.01459121]
[1725014166777,4.45353642,2514.8,2514.7,6.38507649]
[1725014166984,4.45353642,2514.8,2514.7,11.38901734]
[1725014167286,5.67144615,2514.9,2514.7,7.54894859]
[1725014167490,5.67144615,2514.9,2514.8,0.79113715]
[1725014167706,1.43,2514.9,2514.8,0.39758]
[1725014167881,1.43,2515.1,2514.9,0.39756]
[1725014168192,4.38137473,2515.0,2514.9,0.3941]
[1725014168689,4.38137473,2515.0,2514.9,0.79167]
[1725014169086,4.38137473,2515.1,2514.9,0.3941]
[1725014169289,3.44,2515.2,2514.9,0.79165]
[1725014169588,4.27181604,2515.1,2514.9,0.79165]
[1725014169790,4.27181604,2515.1,2515.0,0.39755]
[1725014169986,3.44,2515.6,2515.5,0.39747]
[1725014170175,3.83746,2515.6,2515.3,3.2078]
[1725014170377,4.98309572,2515.5,2515.3,3.2078]
[1725014170594,0.75248,2515.5,2515.3,3.2078]
[1725014171091,0.39752,2515.2,2515.1,0.3843]
[1725014171283,3.44,2515.2,2515.1,0.3843]
[1725014171485,7.72076017,2515.2,2515.1,0.78183]
[1725014172481,4.28076017,2515.2,2515.1,4.75783]
[1725014172685,0.355,2515.5,2515.4,0.39749]
[1725014173089,4.42080692,2515.4,2515.3,0.39749]
[1725014173288,4.81829692,2515.4,2515.2,0.39751]
[1725014173490,3.83749,2515.4,2515.1,0.3843]
[1725014173687,4.22205514,2515.3,2515.2,0.39751]
[1725014173882,4.22205514,2515.3,2515.2,3.60531]
[1725014174386,4.22205514,2515.3,2515.2,3.60532]
[1725014175190,1.98629,2516.9,2515.8,0.39742]
[1725014175191,3.44,2515.9,2515.8,0.39742]
[1725014175385,4.1669,2516.1,2515.8,3.2078]
[1725014175584,4.35929262,2516.1,2516.0,0.39739]
[1725014175789,0.00596291,2516.2,2516.0,41.19739]
[1725014175981,0.00596291,2516.2,2516.0,0.39739]
[1725014176181,0.40332291,2516.2,2516.1,3.2078]
[1725014176394,4.31418282,2516.1,2516.0,0.39739]
[1725014176795,4.71750573,2516.2,2516.0,0.39739]
[1725014176989,3.83738,2516.1,2515.9,0.3626]
[1725014177297,0.39741,2515.9,2515.8,3.2078]
[1725014177486,4.83095,2515.9,2515.8,0.60720238]
[1725014177691,13.69991421,2515.9,2515.8,1.01778822]
[1725014177991,13.69991421,2515.9,2515.8,0.41058584]
[1725014178300,12.70637421,2515.9,2515.8,0.41058584]
[1725014179886,8.35207421,2515.9,2515.8,0.41058584]
[1725014180089,7.95466421,2515.9,2515.8,1.41524054]
[1725014180285,4.91207421,2515.9,2515.8,1.01782054]
[1725014180698,4.91207421,2515.9,2515.8,1.01780912]
[1725014180892,13.32000421,2515.9,2515.8,1.01780912]
[1725014181999,0.39745,2515.6,2515.5,3.60526]
[1725014182392,4.55672077,2515.6,2515.5,3.60526]
[1725014182794,4.15927077,2515.6,2515.5,3.60526]
[1725014183196,0.39745,2515.7,2515.6,0.39745]
[1725014183601,4.66516892,2515.7,2515.6,0.39745]
[1725014183899,4.66516892,2515.7,2515.5,3.60526]
[1725014183900,0.39745,2515.6,2515.5,3.60526]
[1725014184092,0.39745,2515.6,2515.5,4.65764065]
[1725014184292,4.78672469,2515.6,2515.5,4.65764065]
[1725014184498,4.78672469,2515.6,2515.5,3.60526]
[1725014185389,4.78672469,2515.6,2515.5,3.2078]
[1725014185606,4.78672469,2515.6,2515.5,3.60527]
[1725014185992,4.38927469,2515.6,2515.5,3.60527]
[1725014186894,3.44,2516.1,2515.9,0.39739]
[1725014187099,4.83083,2516.1,2516.0,0.41054987]
[1725014187302,4.83083,2516.1,2515.8,3.2078]
[1725014187303,0.39742,2515.8,2515.7,0.3619]
[1725014187490,4.80175,2516.1,2515.3,3.595]
[1725014187491,0.39747,2515.6,2515.3,3.595]
[1725014187689,0.39747,2515.6,2515.5,0.39747]
[1725014187894,0.39747,2515.6,2515.5,1.44987051]
[1725014188091,0.39747,2515.6,2515.5,2.05711076]
[1725014188295,4.22614782,2515.6,2515.5,2.05711076]
[1725014188701,3.82867782,2515.6,2515.5,2.05711076]
[1725014189107,4.22612782,2515.6,2515.5,2.05711076]
[1725014189906,4.22612782,2515.6,2515.5,1.65964076]
[1725014190600,3.82867782,2515.6,2515.5,2.05711076]
[1725014190805,3.82867782,2515.6,2515.5,2.05715134]
[1725014191202,3.82867782,2515.6,2515.5,2.93491462]
[1725014191399,3.82867782,2515.6,2515.5,6.91011462]
[1725014191597,3.82867782,2515.6,2515.5,7.90379462]
[1725014191798,3.82867782,2515.6,2515.5,8.89747462]
[1725014193407,3.82867782,2515.6,2515.5,9.68829978]
[1725014193905,3.44,2515.9,2515.8,0.39742]
[1725014194210,7.7114803,2515.9,2515.8,5.26490134]
[1725014194399,4.2714803,2515.9,2515.8,18.10413009]
[1725014194605,0.00596291,2516.2,2516.1,0.39738]
[1725014194803,0.00596291,2516.2,2516.1,6.25814947]
[1725014195002,4.27744321,2516.2,2516.1,12.10361507]
[1725014195208,0.00596291,2516.2,2516.1,11.11016507]
[1725014196109,0.00596291,2516.2,2516.1,18.89423497]
[1725014196298,0.00596291,2516.2,2516.1,23.4693912]
[1725014196499,0.00241142,2516.2,2516.1,23.4693912]
[1725014197007,0.00241142,2516.2,2516.1,12.97075036]
[1725014197309,4.28890744,2516.2,2516.1,6.14182189]
[1725014198504,4.28890744,2516.2,2516.1,5.26427989]
[1725014199010,4.28890744,2516.2,2516.1,6.14189612]
[1725014199409,4.28890744,2516.2,2516.1,5.26427989]
[1725014200214,4.28890744,2516.2,2516.1,3.60518]
[1725014200409,4.28890744,2516.2,2516.1,6.25789168]
[1725014200612,0.00241142,2516.2,2516.1,18.10335565]
[1725014201013,0.00241142,2516.2,2516.1,18.89396038]
[1725014201317,0.00241142,2516.2,2516.1,18.10335565]
[1725014202311,0.00241142,2516.2,2516.1,6.14205565]
[1725014202513,4.56912956,2516.2,2516.1,5.74467565]
[1725014202707,4.17176956,2516.2,2516.1,5.74466966]
[1725014202908,4.54896956,2516.2,2516.1,5.74466966]
[1725014203108,4.54896956,2516.2,2516.1,6.14204966]
[1725014203320,4.54896956,2516.2,2516.1,3.60518]
[1725014203618,4.54896956,2516.2,2516.1,4.86705624]
[1725014204009,4.94632956,2516.2,2516.1,4.86705624]
[1725014204415,4.94632956,2516.2,2516.1,4.2254218]
[1725014205918,4.94632956,2516.2,2516.1,1.0176218]
[1725014206521,4.94632956,2516.2,2516.1,0.60713468]
[1725014206717,5.93973956,2516.2,2516.1,1.01766342]
[1725014206922,13.35413956,2516.2,2516.1,0.41052874]
[1725014207110,0.39739,2516.0,2515.9,0.00359249]
[1725014207309,3.83739,2516.0,2515.9,1.02131545]
[1725014207518,8.20402008,2516.0,2515.9,1.02131545]
[1725014207719,12.17842008,2516.0,2515.9,1.02131545]
[1725014208411,12.17842008,2516.0,2515.9,0.41413014]
[1725014208619,13.17191008,2516.0,2515.9,0.41413014]
[1725014208820,13.17191008,2516.0,2515.9,0.00359249]
[1725014210626,14.16540008,2516.0,2515.9,0.00359249]
[1725014213320,16.72540008,2516.0,2515.9,0.00359249]
[1725014213517,2.38456,2515.8,2515.7,3.2078]
[1725014213825,10.31387624,2515.8,2515.7,3.2078]
[1725014214024,10.31387624,2515.8,2515.3,0.3815]
[1725014214025,0.39749,2515.4,2515.3,0.3815]
[1725014214222,3.83749,2515.4,2515.3,1.39942224]
[1725014214432,9.07963155,2515.4,2515.3,1.01792224]
[1725014215223,8.08591155,2515.4,2515.3,1.01792224]
[1725014215632,9.07963155,2515.4,2515.3,1.01792224]
[1725014215926,8.08591155,2515.4,2515.3,1.01792224]
[1725014216326,8.08591155,2515.4,2515.3,0.4106419]
[1725014216530,8.08591155,2515.4,2515.3,1.01794006]
[1725014217329,5.63963155,2515.4,2515.3,1.01794006]
[1725014217524,9.07963155,2515.4,2515.3,1.01794006]
[1725014218126,8.08591155,2515.4,2515.3,1.01794006]
[1725014220831,9.07963155,2515.4,2515.3,1.01794006]
[1725014221435,9.07963155,2515.4,2515.3,0.4106419]
[1725014223424,13.05483155,2515.4,2515.3,0.4106419]
[1725014223938,14.04855155,2515.4,2515.3,0.4106419]
[1725014225630,11.66362155,2515.4,2514.9,3.2078]
[1725014225943,11.66362155,2515.4,2514.8,0.3597]
[1725014225944,1.39149,2514.9,2514.8,0.3597]
[1725014226135,1.39149,2514.9,2514.8,1.37776461]
[1725014226337,5.94408023,2514.9,2514.8,1.37776461]
[1725014226738,1.39171,2514.5,2514.4,0.0202]
[1725014227034,9.02620023,2514.5,2514.4,0.41076564]
[1725014227231,9.02620023,2514.5,2514.0,1.03982341]
[1725014227232,0.39769,2514.1,2514.0,1.03982341]
[1725014227432,3.44,2514.1,2514.0,2.05808189]
[1725014227633,7.81004972,2514.1,2514.0,2.05808189]
[1725014228234,0.39771,2514.0,2513.9,3.2078]
[1725014228438,7.81004972,2514.1,2513.8,0.7173]
[1725014228439,0.39772,2513.9,2513.8,0.7173]
[1725014228640,0.39772,2513.9,2513.8,43.17737744]
[1725014228942,20.07538383,2513.9,2513.8,0.85185744]
[1725014229143,20.07538383,2513.9,2513.3,0.79115309]
[1725014229144,0.99446,2513.6,2512.8,0.41809]
[1725014229435,0.99446,2513.6,2512.8,0.0202]
[1725014229436,3.83788,2512.9,2512.8,0.0202]
[1725014229646,8.81179,2512.9,2512.8,0.0202]
[1725014229830,13.18287446,2512.9,2512.8,0.0202]
[1725014230034,17.79028446,2512.9,2512.3,3.2078]
[1725014230251,3.2078,2512.8,2512.2,3.2078]
[1725014230434,4.37108446,2512.9,2512.5,3.2078]
[1725014230435,7.81108446,2512.9,2512.5,3.2078]
[1725014230740,3.44,2512.9,2512.8,0.3979]
[1725014230944,4.26189592,2512.8,2512.5,3.2078]
[1725014231141,3.44,2512.7,2512.5,3.2078]
[1725014231448,0.39795,2512.5,2512.0,0.39802]
[1725014231739,3.44,2512.4,2511.9,3.2078]
[1725014231939,8.00808728,2512.4,2511.9,3.2078]
[1725014232242,8.00808728,2512.4,2512.1,0.39799]
[1725014232243,3.44,2512.4,2512.1,0.39799]
[1725014232440,3.44,2512.4,2512.2,0.39799]
[1725014232441,4.23575831,2512.3,2512.2,0.39799]
[1725014232839,3.44,2512.4,2512.3,0.39798]
[1725014233044,3.44,2512.4,2512.3,4.37878]
[1725014233239,3.44,2512.4,2512.3,3.9808]
[1725014233446,3.44,2512.4,2512.3,4.37878]
[1725014233751,7.76653249,2512.4,2511.7,3.9592]
[1725014234044,7.76653249,2512.4,2512.0,0.39802]
[1725014234239,7.76653249,2512.4,2511.7,3.9592]
[1725014234445,7.76653249,2512.4,2512.1,0.398]
[1725014234647,7.76653249,2512.4,2512.2,0.39798]
[1725014234835,7.76653249,2512.4,2512.0,3.2078]
[1725014234836,4.32653249,2512.4,2512.3,0.39798]
[1725014235143,3.44,2512.8,2512.4,0.39795]
[1725014235344,3.44,2512.6,2512.5,0.77695]
[1725014235841,3.44,2512.6,2512.5,45.55695]
[1725014237350,3.44,2512.6,2512.5,45.159]
[1725014237648,3.44,2512.6,2512.5,41.179]
[1725014238036,12.00539227,2512.6,2512.5,40.8]
[1725014238235,0.39797,2512.4,2512.0,3.60582]
[1725014238549,3.44,2512.1,2512.0,3.60582]
[1725014238942,3.44,2512.3,2512.2,0.39799]
[1725014239451,3.44,2512.5,2512.4,0.39795]
[1725014239846,3.44,2512.5,2512.4,4.37795]
[1725014240243,3.44,2512.5,2512.1,40.8]
[1725014240442,7.42792469,2512.5,2512.3,3.60577]
[1725014240650,7.42792469,2512.5,2512.1,40.8]
[1725014240947,3.44,2512.3,2512.2,0.39799]
[1725014241152,7.42792469,2512.5,2512.4,0.39796]
[1725014241335,3.44,2512.5,2512.4,0.39796]
[1725014241536,3.44,2512.5,2512.4,4.37796]
[1725014241735,3.44,2512.5,2512.1,40.8]
[1725014241951,3.44,2512.2,2512.1,40.8]
[1725014242451,3.83799,2512.2,2512.1,44.7808]
[1725014242842,3.44,2512.2,2512.1,3.9808]
[1725014243042,3.83799,2512.2,2512.1,3.9808]
[1725014243549,3.44,2512.2,2512.1,3.9808]
[1725014244754,3.83797,2512.4,2512.1,3.9808]
[1725014245056,3.83797,2512.4,2511.9,44.3811]
[1725014245057,4.7446893,2512.3,2511.9,44.77913]
[1725014245346,4.7446893,2512.3,2512.0,0.39802]
[1725014245545,3.83796,2512.4,2512.0,3.9808]
[1725014245752,0.39798,2512.3,2512.0,0.39801]
[1725014245952,4.20300614,2512.2,2512.0,0.39801]
[1725014246154,4.60098614,2512.3,2512.0,0.39801]
[1725014246350,0.39798,2512.3,2512.0,0.39801]
[1725014246559,4.60382308,2512.2,2512.0,0.39801]
[1725014246761,3.44,2512.1,2511.9,44.3811]
[1725014247055,3.83801,2512.1,2511.9,3.5811]
[1725014247357,3.44,2512.1,2511.9,7.5619]
[1725014248364,3.83801,2512.1,2511.9,7.5619]
[1725014249364,4.28680925,2512.0,2511.9,3.5811]
[1725014250464,4.68482925,2512.0,2511.9,3.5811]
[1725014250761,4.28680925,2512.0,2511.9,3.5811]
[1725014251259,3.44,2512.1,2511.9,7.1886]
[1725014251459,0.99511,2511.9,2511.6,3.2078]
[1725014251652,0.39807,2511.7,2511.6,3.2078]
[1725014252056,0.39812,2511.4,2511.3,0.3898]
[1725014252256,0.39815,2511.2,2511.1,3.2078]
[1725014252452,3.83815,2511.2,2511.1,3.2078]
[1725014252653,3.83815,2511.2,2510.7,0.3749]
[1725014252862,0.39821,2510.8,2510.7,0.3749]
[1725014253155,0.39822,2510.8,2510.5,41.57605]
[1725014253360,3.44,2510.9,2510.7,3.2078]
[1725014253561,0.99539,2511.2,2510.7,3.2078]
[1725014253562,3.44,2511.2,2510.7,3.2078]
[1725014253751,3.44,2511.2,2511.1,0.39817]
[1725014253960,6.6478,2511.4,2511.2,0.39814]
[1725014254256,6.6478,2511.4,2511.0,3.2078]
[1725014254257,3.44596291,2511.6,2511.5,0.3981]
[1725014254463,0.00596291,2511.6,2511.5,0.3981]
[1725014254661,0.00596291,2511.6,2511.5,5.37497]
[1725014254852,0.00596291,2511.6,2511.5,4.3797]
[1725014255056,3.44596291,2511.6,2511.5,4.3797]
[1725014255262,9.19554439,2511.6,2511.5,40.8]
[1725014255470,9.19554439,2511.6,2511.1,0.7527]
[1725014255471,7.80222439,2511.6,2511.1,0.7527]
[1725014255769,3.83813,2511.4,2511.2,0.39815]
[1725014255958,3.83813,2511.4,2511.3,40.8]
[1725014256263,4.2156702,2511.3,2510.9,3.2078]
[1725014256468,0.39818,2511.0,2510.9,3.2078]
[1725014256767,4.94294688,2511.0,2510.9,3.2078]
[1725014257658,4.94294688,2511.0,2510.9,3.606]
[1725014257659,4.54476688,2511.0,2510.9,3.606]
[1725014257859,0.00596291,2511.6,2511.5,0.3981]
[1725014258068,0.00596291,2511.6,2511.5,3.6059]
[1725014258363,2.73020781,2511.6,2511.4,0.3579]
[1725014258577,2.73020781,2511.6,2511.2,3.2078]
[1725014258578,0.3981,2511.5,2511.2,3.2078]
[1725014258758,6.17020781,2511.6,2511.1,0.3683]
[1725014258759,3.83813,2511.4,2511.1,0.3683]
[1725014258960,4.4059967,2511.4,2511.3,0.39814]
[1725014260167,4.4059967,2511.4,2511.3,1.39349]
[1725014260370,0.00596291,2511.6,2511.5,0.3981]
[1725014260571,0.00596291,2511.6,2511.5,3.6059]
[1725014260766,4.16422965,2511.6,2511.5,0.3981]
[1725014261170,7.60422965,2511.6,2511.5,0.3981]
[1725014261371,0.39812,2511.5,2511.1,3.5761]
[1725014261560,7.60422965,2511.6,2511.5,0.3981]
[1725014261765,3.44596291,2511.6,2511.5,0.3981]
[1725014261969,7.65958797,2511.6,2511.5,0.3981]
[1725014262471,0.00596291,2511.6,2511.5,4.3797]
[1725014262873,3.44596291,2511.6,2511.4,0.39811]
[1725014263263,8.16486552,2511.6,2511.3,0.39813]
[1725014263470,7.76677552,2511.6,2511.5,0.3981]
[1725014263671,7.76677552,2511.6,2511.1,1.35192]
[1725014263672,3.44596291,2511.6,2511.1,3.5643]
[1725014263882,3.44596291,2511.6,2511.3,0.39813]
[1725014264078,7.83049995,2511.6,2511.4,0.39812]
[1725014264378,7.83049995,2511.6,2511.4,3.60592]
[1725014264568,7.83049995,2511.6,2511.4,3.2078]
[1725014265178,7.83049995,2511.6,2511.4,7.58751]
[1725014265179,3.44596291,2511.6,2511.4,7.58751]
[1725014265371,3.44596291,2511.6,2511.4,3.60591]
[1725014265571,3.44596291,2511.6,2511.4,3.2078]
[1725014265773,3.44596291,2511.6,2511.4,3.60592]
[1725014265973,0.00596291,2511.6,2511.5,0.3981]
[1725014266269,0.00596291,2511.6,2511.5,4.3797]
[1725014267065,0.00596291,2511.6,2511.5,10.3797]
[1725014268275,0.00596291,2511.6,2511.5,4.3797]
[1725014269372,0.00596291,2511.6,2511.5,10.3797]
[1725014269571,0.00596291,2511.6,2511.5,11.72977]
[1725014269879,0.00596291,2511.6,2511.5,5.72977]
[1725014270084,0.00596291,2511.6,2511.5,11.72977]
[1725014270286,2.91e-06,2511.6,2511.5,57.37571345]
[1725014270486,3.44,2512.8,2512.1,0.99499]
[1725014270786,1.13199,2512.9,2512.6,0.39792]
[1725014270967,1.13199,2512.9,2512.5,3.2078]
[1725014270968,0.7341,2512.9,2512.5,3.2078]
[1725014271173,8.13899582,2512.8,2512.5,3.60574]
[1725014271570,8.13899582,2512.8,2512.5,3.2078]
[1725014271571,3.44,2512.6,2512.5,3.2078]
[1725014271769,3.44,2512.6,2512.4,0.00596291]
[1725014272077,0.39795,2512.5,2512.4,0.00596291]
[1725014272479,4.86742766,2512.5,2512.4,0.00596291]
[1725014273079,9.84229766,2512.5,2512.4,0.00596291]
[1725014273376,4.46947766,2512.5,2512.4,0.41658394]
[1725014273774,4.86742766,2512.5,2512.4,0.41658394]
[1725014273973,8.84742766,2512.5,2512.4,0.41658394]
[1725014274477,8.84742766,2512.5,2512.4,0.41657433]
[1725014275281,15.84229766,2512.5,2512.4,0.41657433]
[1725014276079,9.84229766,2512.5,2512.4,0.41657433]
[1725014277289,8.84742766,2512.5,2512.4,0.41657433]
[1725014278182,9.84229766,2512.5,2512.4,0.41657433]
[1725014279493,8.84742766,2512.5,2512.4,0.41657433]
[1725014279790,4.86742766,2512.5,2512.4,0.41657433]
[1725014280585,4.86742766,2512.5,2512.4,0.00596291]
[1725014280789,4.46947766,2512.5,2512.4,0.8145393]
[1725014280998,4.86742766,2512.5,2512.4,0.8145393]
[1725014281177,4.86742766,2512.5,2512.4,1.42181059]
[1725014281485,9.84229766,2512.5,2512.4,0.4165793]
[1725014281781,9.84229766,2512.5,2512.4,0.00596291]
[1725014282087,9.84229766,2512.5,2512.4,0.41658028]
[1725014282477,9.84229766,2512.5,2512.4,0.00596291]
[1725014282478,10.83716766,2512.5,2512.4,0.00596291]
[1725014283284,9.84229766,2512.5,2512.4,0.00596291]
[1725014283485,12.28742766,2512.5,2512.4,0.81454396]
[1725014283684,12.28742766,2512.5,2512.4,0.41658396]
[1725014283890,12.28742766,2512.5,2512.4,0.81454396]
[1725014284284,7.90947766,2512.5,2512.4,0.81454396]
[1725014284489,11.88947766,2512.5,2512.4,0.81454396]
[1725014284690,8.30742766,2512.5,2512.4,0.33658396]
[1725014285088,12.28742766,2512.5,2512.4,0.33658396]
[1725014285789,0.39801,2512.1,2512.0,0.3685]
[1725014286091,0.39801,2512.1,2512.0,2.49582952]
[1725014286302,0.39801,2512.1,2512.0,1.61779432]
[1725014286797,0.39801,2512.1,2512.0,0.9757906]
[1725014287484,4.435,2512.2,2512.1,0.39801]
[1725014287485,3.838,2512.2,2512.1,0.39801]
[1725014287689,3.838,2512.2,2512.0,0.3685]
[1725014287690,0.39801,2512.1,2512.0,0.3685]
[1725014287993,4.86482586,2512.1,2512.0,0.97580972]
[1725014288192,7.90681586,2512.2,2512.0,1.37382972]
[1725014288394,3.838,2512.2,2512.1,0.60730972]
[1725014288787,8.08700343,2512.2,2512.1,0.60730972]
[1725014289694,9.08199343,2512.2,2512.1,0.60730972]
[1725014290599,13.06279343,2512.2,2512.1,0.60730972]
[1725014291400,4.64700343,2512.2,2512.1,0.60730972]
[1725014291598,4.24900343,2512.2,2512.1,0.60730972]
[1725014291804,3.44,2512.7,2512.1,5.2301157]
[1725014292001,5.18798291,2512.9,2512.5,0.39794]
[1725014292195,5.18798291,2512.9,2512.6,0.99493922]
[1725014292196,4.91145972,2512.7,2512.6,0.99493922]
[1725014292497,0.39793,2512.7,2512.6,0.99494047]
[1725014292888,3.83793,2512.7,2512.6,0.99494047]
[1725014293089,3.83793,2512.7,2512.6,0.3877]
[1725014293292,3.83793,2512.7,2512.5,3.2078]
[1725014293293,0.39793,2512.6,2512.5,3.2078]
[1725014293486,0.39793,2512.6,2512.5,3.81504903]
[1725014293694,3.83792,2512.7,2512.5,8.19299903]
[1725014293900,3.83792,2512.7,2512.6,0.60723788]
[1725014294496,3.83792,2512.7,2512.5,3.60575]
[1725014294794,0.39795,2512.5,2512.3,0.78567]
[1725014295000,0.39793,2512.6,2512.4,0.60726315]
[1725014295304,0.39793,2512.6,2512.5,0.60725297]
[1725014295500,0.39795,2512.5,2512.4,3.2078]
[1725014295698,0.39795,2512.5,2512.4,7.79505495]
[1725014296088,4.43481,2512.7,2512.4,7.79505495]
[1725014296089,0.39794,2512.6,2512.4,8.19301495]
[1725014296397,0.39794,2512.6,2512.5,0.60725335]
[1725014296599,0.39794,2512.6,2512.5,1.01780478]
[1725014296788,0.39794,2512.6,2512.5,4.99780478]
[1725014297097,3.83792,2512.7,2512.5,4.99780478]
[1725014297294,3.83792,2512.7,2512.6,0.41055143]
[1725014298599,8.10062023,2512.7,2512.6,0.41055143]
[1725014299099,9.09541023,2512.7,2512.6,0.41055143]
[1725014299301,0.39795,2512.5,2512.4,3.2078]
[1725014299503,0.39795,2512.5,2512.4,4.22560083]
[1725014299705,4.7874179,2512.5,2512.4,4.22560083]
[1725014299900,4.7874179,2512.5,2512.4,4.86753791]
[1725014300095,4.3894679,2512.5,2512.4,5.26549791]
[1725014300499,4.7873979,2512.6,2512.5,0.39794]
[1725014300798,3.44,2512.7,2512.5,1.41575083]
[1725014301005,3.83792,2512.7,2512.6,1.01780083]
[1725014301508,8.26815389,2512.7,2512.6,1.01780083]
[1725014301697,8.26815389,2512.7,2512.6,0.60724682]
[1725014301904,8.26815389,2512.7,2512.6,1.01779266]
[1725014304104,13.24294389,2512.7,2512.6,1.01779266]
[1725014304293,13.60904389,2512.7,2512.6,1.01779266]
[1725014305411,0.39795,2512.5,2512.4,3.60576]
[1725014305802,4.97924773,2512.5,2512.4,5.26551204]
[1725014305996,4.58129773,2512.5,2512.4,5.26551204]
[1725014306203,4.58129773,2512.5,2512.4,5.26551139]
[1725014306404,4.58129773,2512.5,2512.4,6.14348254]
[1725014306405,0.39795,2512.5,2512.4,6.14348254]
[1725014306708,4.91396658,2512.5,2512.4,5.26551139]
[1725014307096,4.51601658,2512.5,2512.4,9.24551139]
[1725014307417,0.39794,2512.6,2512.5,0.39795]
[1725014307611,4.81761291,2512.9,2512.5,1.65975139]
[1725014307612,3.82286291,2512.9,2512.5,1.65975139]
[1725014307909,3.82286291,2512.9,2512.3,0.3877]
[1725014307910,0.00596291,2512.9,2512.8,2.43256937]
[1725014308102,0.00596291,2512.9,2512.8,47.24439479]
[1725014308302,0.00596291,2512.9,2512.8,50.24840219]
[1725014308499,0.00596291,2512.9,2512.8,52.58181034]
[1725014308708,0.00596291,2512.9,2512.8,54.14328244]
[1725014308909,0.00596291,2512.9,2512.8,49.82037429]
[1725014309108,0.00596291,2512.9,2512.8,58.58178484]
[1725014309306,0.00596291,2512.9,2512.8,57.58703484]
[1725014309817,0.00596291,2512.9,2512.8,58.78232539]
[1725014310420,0.00596291,2512.9,2512.8,58.58178484]
[1725014311223,0.00596291,2512.9,2512.8,58.78320112]
[1725014312022,0.00596291,2512.9,2512.8,60.34467322]
[1725014312215,0.00596291,2512.9,2512.8,58.78320112]
[1725014312420,0.00596291,2512.9,2512.8,60.34457086]
[1725014312923,0.00596291,2512.9,2512.8,58.35486867]
[1725014313125,0.00596291,2512.9,2512.8,60.34446377]
[1725014313318,0.00596291,2512.9,2512.8,60.3428329]
[1725014313720,0.00596291,2512.9,2512.8,61.3375829]
[1725014315619,0.00596291,2512.9,2512.8,63.3270929]
[1725014315821,0.78664,2513.9,2513.7,0.39776]
[1725014316028,0.3889,2513.9,2513.7,0.39776]
[1725014316228,0.3889,2513.9,2513.6,3.60556]
[1725014316229,4.32352793,2513.7,2513.6,3.60556]
[1725014316426,4.72127793,2513.8,2513.7,0.39776]
[1725014316730,0.39775,2513.8,2513.7,1.41521339]
[1725014316930,0.39775,2513.8,2513.7,1.01745339]
[1725014317235,0.39775,2513.8,2513.7,0.41038664]
[1725014317725,0.3889,2513.9,2513.8,0.39774]
[1725014317927,0.3889,2513.9,2513.8,0.80810837]
[1725014318125,0.3889,2513.9,2513.8,1.01741305]
[1725014318331,0.3889,2513.9,2513.8,0.80810837]
[1725014318726,0.3889,2513.9,2513.8,0.41036837]
[1725014318727,0.78662,2513.9,2513.8,0.41036837]
[1725014318929,0.78662,2513.9,2513.8,0.80809748]
[1725014318930,0.3889,2513.9,2513.8,0.80809748]
[1725014319232,0.3889,2513.9,2513.8,0.82071562]
[1725014319438,0.39766291,2514.0,2513.8,0.41035748]
[1725014319737,0.00596291,2514.0,2513.9,7.99345952]
[1725014319929,0.00596291,2514.0,2513.9,10.35039217]